fUSD/lending_fUSD_20240525
["ID","MTS","AMOUNT","RATE_DAILY","PERIOD"]
[327935761,1716675048693,-151.0,0.00027264,7]
[327935762,1716675048703,-151.0,0.00027264,7]
[327935763,1716675048712,-151.0,0.00027264,7]
[327935764,1716675048721,-151.0,0.00027264,7]
[327935765,1716675048731,-191.822317,0.00027264,7]
[327935766,1716675048741,-191.822317,0.00027264,7]
[327935767,1716675048750,-272.4467,0.00027264,7]
[327935768,1716675048760,-151.0,0.00027264,7]
[327935769,1716675048769,-151.0,0.00027264,7]
[327935770,1716675048779,-151.0,0.00027264,7]
[327935771,1716675048788,-151.0,0.00027264,7]
[327935772,1716675048798,-151.0,0.00027264,7]
[327935773,1716675048807,-151.0,0.00027264,7]
[327935774,1716675048818,-151.0,0.00027264,7]
[327935775,1716675048827,-267.924768,0.00027264,7]
[327935776,1716675048837,-332.410801,0.00027264,7]
[327935777,1716675048847,-332.410801,0.00027264,7]
[327935778,1716675048857,-368.658978,0.00027264,7]
[327935779,1716675048868,-368.658978,0.00027264,7]
[327935780,1716675048878,-357.07206776,0.00027271,2]
[327935781,1716675048887,-157.84366425,0.00027275,2]
[327935782,1716675048897,-75080.0873096,0.00027281,7]
[327935783,1716675048906,-151.0,0.00027281,7]
[327935784,1716675048916,-151.0,0.00027281,7]
[327935785,1716675048926,-467.847101,0.00027281,7]
[327935786,1716675048935,-151.0,0.00027281,7]
[327935787,1716675048945,-467.847101,0.00027281,7]
[327935788,1716675048954,-151.0,0.00027281,7]
[327935789,1716675048964,-151.0,0.00027281,7]
[327935790,1716675048973,-151.0,0.00027281,7]
[327935791,1716675048982,-151.0,0.00027281,7]
[327935792,1716675048991,-151.0,0.00027281,7]
[327935793,1716675049001,-164.466534,0.00027281,7]
[327935794,1716675049010,-164.466534,0.00027281,7]
[327935795,1716675049020,-151.0,0.00027281,7]
[327935796,1716675049030,-151.0,0.00027281,7]
[327935797,1716675049039,-157.732301,0.00027281,7]
[327935798,1716675049048,-156.310187,0.00027281,7]
[327935799,1716675049058,-194.149248,0.00027281,7]
[327935800,1716675049068,-194.149248,0.00027281,7]
[327935801,1716675049078,-151.0,0.00027281,7]
[327935802,1716675049087,-151.0,0.00027281,7]
[327935803,1716675049097,-151.0,0.00027281,7]
[327935804,1716675049106,-226.056258,0.00027281,7]
[327935805,1716675049115,-160.763076,0.00027281,7]
[327935806,1716675049125,-151.0,0.00027281,7]
[327935807,1716675049135,-226.056258,0.00027281,7]
[327935808,1716675049144,-151.0,0.00027281,7]
[327935809,1716675049153,-151.0,0.00027281,7]
[327935810,1716675049163,-450.070366,0.00027281,7]
[327935811,1716675049172,-450.070366,0.00027281,7]
[327935812,1716675049182,-151.0,0.00027281,7]
[327935813,1716675049191,-151.02372557,0.00027323,2]
[327935814,1716675049200,-287.20692423,0.00027343,2]
[327935815,1716675049210,-159.08274939,0.00027359,2]
[327935816,1716675049219,-805.42124353,0.0002739,2]
[327935817,1716675049229,-151.0,0.0002739,7]
[327935818,1716675049238,-151.0,0.0002739,7]
[327935819,1716675049248,-151.0,0.0002739,7]
[327935820,1716675049257,-151.0,0.0002739,7]
[327935821,1716675049267,-151.0,0.0002739,7]
[327935822,1716675049276,-151.0,0.0002739,7]
[327935823,1716675049286,-211.276687,0.0002739,7]
[327935824,1716675049296,-151.0,0.0002739,7]
[327935825,1716675049305,-151.0,0.0002739,7]
[327935826,1716675049315,-151.0,0.0002739,7]
[327935827,1716675049324,-151.0,0.0002739,7]
[327935828,1716675049333,-151.0,0.0002739,7]
[327935829,1716675049342,-151.0,0.0002739,7]
[327935830,1716675049351,-332.410801,0.0002739,7]
[327935831,1716675049361,-332.410801,0.0002739,7]
[327935832,1716675049371,-368.658978,0.0002739,7]
[327935833,1716675049380,-368.658978,0.0002739,7]
[327935834,1716675049389,-151.0,0.0002739,7]
[327935835,1716675049399,-162.146351,0.0002739,7]
[327935836,1716675049409,-151.0,0.0002739,7]
[327935837,1716675049424,-151.0,0.0002739,7]
[327935838,1716675049653,-162.146351,0.0002739,7]
[327935839,1716675049663,-151.0,0.0002739,7]
[327935840,1716675049673,-151.0,0.0002739,7]
[327935841,1716675049684,-151.0,0.0002739,7]
[327935842,1716675049693,-151.0,0.0002739,7]
[327935843,1716675049703,-151.0,0.0002739,7]
[327935844,1716675049713,-266.724653,0.0002739,7]
[327935845,1716675049723,-1000.0,0.0002739,2]
[327935846,1716675049733,-10000.0,0.0002739,2]
[327935847,1716675049743,-38231.1643,0.0002739,2]
[327935848,1716675049753,-151.0,0.00027397,7]
[327935849,1716675049762,-151.0,0.00027397,7]
[327935850,1716675049771,-151.0,0.00027397,7]
[327935851,1716675049782,-151.0,0.00027397,7]
[327935852,1716675049791,-151.0,0.00027397,7]
[327935853,1716675049801,-151.0,0.00027397,7]
[327935854,1716675049810,-151.0,0.00027397,7]
[327935855,1716675049820,-151.0,0.00027397,7]
[327935856,1716675049829,-151.0,0.00027397,7]
[327935857,1716675049839,-151.0,0.00027397,7]
[327935858,1716675049848,-172.316665,0.00027397,7]
[327935859,1716675049858,-151.0,0.00027397,7]
[327935860,1716675049867,-151.0,0.00027397,7]
[327935861,1716675049877,-151.0,0.00027397,7]
[327935862,1716675049887,-151.0,0.00027397,7]
[327935863,1716675049897,-151.0,0.00027397,7]
[327935864,1716675049907,-151.0,0.00027397,7]
[327935865,1716675049916,-151.0,0.00027397,7]
[327935866,1716675049926,-151.0,0.00027397,7]
[327935867,1716675049936,-151.0,0.00027397,7]
[327935868,1716675049946,-151.0,0.00027397,7]
[327935869,1716675049955,-151.0,0.00027397,7]
[327935870,1716675049965,-151.0,0.00027397,7]
[327935871,1716675049974,-151.0,0.00027397,7]
[327935872,1716675049984,-151.0,0.00027397,7]
[327935873,1716675049993,-214.68,0.00027397,7]
[327935874,1716675050003,-151.0,0.00027397,7]
[327935875,1716675050012,-151.0,0.00027397,7]
[327935876,1716675050021,-151.0,0.00027397,7]
[327935877,1716675050030,-151.0,0.00027397,7]
[327935878,1716675050040,-151.0,0.00027397,7]
[327935879,1716675050049,-158.159122,0.00027398,7]
[327935880,1716675050059,-151.0,0.00027398,7]
[327935881,1716675050067,-165.489041,0.00027398,7]
[327935882,1716675050077,-151.0,0.00027398,7]
[327935883,1716675050086,-202.312435,0.00027398,7]
[327935884,1716675050095,-202.312435,0.00027398,7]
[327935885,1716675050105,-151.0,0.00027398,7]
[327935886,1716675050116,-151.0,0.00027398,7]
[327935887,1716675050125,-11695.4806811,0.00027398,2]
[327935888,1716675050135,-316.2070329,0.00027398,2]
[327935889,1716675050145,-208.21094231,0.00027399,2]
[327935890,1716675050156,-5874.5069088,0.00027399,2]
[327935891,1716675050165,-176.883584,0.00027399,7]
[327935892,1716675050175,-1623.9324948,0.000274,2]
[327935893,1716675050184,-257.24940323,0.000274,2]
[327935894,1716675050193,-628.30009709,0.000274,2]
[327935895,1716675050202,-155.13425422,0.000274,2]
[327935896,1716675050212,-486.0,0.000274,11]
[327935897,1716675050221,-1199.87532147,0.000274,2]
[327935898,1716675050230,-163.00887148,0.000274,2]
[327935899,1716675050239,-200.0,0.000274,2]
[327935900,1716675050248,-192.0,0.000274,11]
[327935901,1716675050257,-500.0,0.000274,2]
[327935902,1716675050266,-500.0,0.000274,2]
[327935903,1716675050276,-500.0,0.000274,2]
[327935904,1716675050285,-500.0,0.000274,2]
[327935905,1716675050294,-500.0,0.000274,2]
[327935906,1716675050305,-500.0,0.000274,2]
[327935907,1716675050314,-500.0,0.000274,2]
[327935908,1716675050323,-500.0,0.000274,2]
[327935909,1716675050333,-500.0,0.000274,2]
[327935910,1716675050343,-500.0,0.000274,2]
[327935911,1716675050353,-151.0,0.000274,7]
[327935912,1716675050364,-151.0,0.000274,7]
[327935913,1716675050375,-151.0,0.000274,7]
[327935914,1716675050384,-231.480487,0.000274,7]
[327935915,1716675050393,-500.0,0.000274,2]
[327935916,1716675050402,-500.0,0.000274,2]
[327935917,1716675050411,-500.0,0.000274,2]
[327935918,1716675050420,-500.0,0.000274,2]
[327935919,1716675050430,-500.0,0.000274,2]
[327935920,1716675050439,-500.0,0.000274,2]
[327935921,1716675050448,-500.0,0.000274,2]
[327935922,1716675050457,-500.0,0.000274,2]
[327935923,1716675050466,-500.0,0.000274,2]
[327935924,1716675050475,-500.0,0.000274,2]
[327935925,1716675050484,-500.0,0.000274,2]
[327935926,1716675050493,-151.0,0.000274,7]
[327935927,1716675050502,-191.822317,0.000274,7]
[327935928,1716675050512,-191.822317,0.000274,7]
[327935929,1716675050521,-151.0,0.000274,7]
[327935930,1716675050531,-151.0,0.000274,7]
[327935931,1716675050540,-344.0,0.000274,2]
[327935932,1716675050549,-688.0,0.000274,2]
[327935933,1716675050558,-151.0,0.000274,7]
[327935934,1716675050567,-155.229259,0.000274,7]
[327935935,1716675050577,-467.847101,0.000274,7]
[327935936,1716675050586,-467.847101,0.000274,7]
[327935937,1716675050596,-151.0,0.000274,7]
[327935938,1716675050605,-160.0,0.000274,2]
[327935939,1716675050614,-151.0,0.000274,7]
[327935940,1716675050625,-151.0,0.000274,7]
[327935941,1716675050634,-151.0,0.000274,7]
[327935942,1716675050646,-164.466534,0.000274,7]
[327935943,1716675050655,-164.466534,0.000274,7]
[327935944,1716675050665,-151.0,0.000274,7]
[327935945,1716675050674,-151.0,0.000274,7]
[327935946,1716675050683,-194.149248,0.000274,7]
[327935947,1716675050692,-194.149248,0.000274,7]
[327935948,1716675050702,-151.0,0.000274,7]
[327935949,1716675050711,-1500.0,0.000274,2]
[327935950,1716675050720,-151.0,0.000274,7]
[327935951,1716675050729,-298.840731,0.000274,7]
[327935952,1716675050739,-226.056258,0.000274,7]
[327935953,1716675050748,-151.0,0.000274,7]
[327935954,1716675050757,-226.056258,0.000274,7]
[327935955,1716675050766,-151.0,0.000274,7]
[327935956,1716675050776,-151.0,0.000274,7]
[327935957,1716675050786,-289.725,0.000274,7]
[327935958,1716675050795,-450.070366,0.000274,7]
[327935959,1716675050805,-450.070366,0.000274,7]
[327935960,1716675050815,-150.0,0.000274,5]
[327935961,1716675050824,-151.0,0.000274,7]
[327935962,1716675050834,-162.146351,0.000274,7]
[327935963,1716675050844,-151.0,0.000274,7]
[327935964,1716675050854,-151.0,0.000274,7]
[327935965,1716675050863,-151.0,0.000274,7]
[327935966,1716675050875,-162.146351,0.000274,7]
[327935967,1716675050884,-151.0,0.000274,7]
[327935968,1716675050893,-151.0,0.000274,7]
[327935969,1716675050903,-2221.11,0.000274,2]
[327935970,1716675050912,-2221.11,0.000274,2]
[327935971,1716675050921,-2221.11,0.000274,2]
[327935972,1716675050931,-2221.11,0.000274,2]
[327935973,1716675050940,-2221.11,0.000274,2]
[327935974,1716675050950,-2221.11,0.000274,2]
[327935975,1716675050959,-2221.11,0.000274,2]
[327935976,1716675050969,-2221.11,0.000274,2]
[327935977,1716675050978,-2221.11,0.000274,2]
[327935978,1716675050987,-2221.11,0.000274,2]
[327935979,1716675050997,-151.0,0.000274,7]
[327935980,1716675051006,-3000.0,0.000274,2]
[327935981,1716675051015,-200.052656,0.000274,7]
[327935982,1716675051024,-266.724653,0.000274,7]
[327935983,1716675051033,-152.278991,0.00027401,2]
[327935984,1716675051043,-152.278991,0.00027401,2]
[327935985,1716675051054,-151.0,0.00027417,7]
[327935986,1716675051062,-153.432814,0.00027417,7]
[327935987,1716675051072,-151.0,0.00027417,7]
[327935988,1716675051081,-151.0,0.00027417,7]
[327935989,1716675051091,-21772.95426353,0.00027422,2]
[327935990,1716675051100,-155.0359777,0.0002746,2]
[327935991,1716675051109,-4598.04156785,0.00027469,2]
[327935992,1716675051119,-4702.03954018,0.00027478,2]
[327935993,1716675051128,-181.63450671,0.00027478,2]
[327935994,1716675051138,-212.89350776,0.00027478,2]
[327935995,1716675051147,-150.0,0.0002748,2]
[327935996,1716675051157,-11241.008409,0.00027481,2]
[327935997,1716675051166,-303.919609,0.00027481,2]
[327935998,1716675051175,-151.0,0.0002749,7]
[327935999,1716675051185,-151.0,0.0002749,7]
[327936000,1716675051194,-324.77451672,0.00027493,2]
[327936001,1716675051203,-155.0,0.00027494,2]
[327936002,1716675051213,-884.887276,0.00027494,2]
[327936003,1716675051222,-9156.94527158,0.00027494,2]
[327936004,1716675051232,-336.15436069,0.00027494,2]
[327936005,1716675051241,-409.84120861,0.00027494,2]
[327936006,1716675051251,-5185.19650813,0.00027494,2]
[327936007,1716675051260,-6238.51672136,0.00027494,2]
[327936008,1716675051269,-1263.02030366,0.00027494,2]
[327936009,1716675051278,-155.0,0.00027494,2]
[327936010,1716675051288,-1227.04758271,0.00027494,2]
[327936011,1716675051297,-326.80688808,0.00027494,2]
[327936012,1716675051307,-817.82411991,0.00027494,2]
[327936013,1716675051316,-1773.26835727,0.00027494,2]
[327936014,1716675051325,-151.0,0.00027494,7]
[327936015,1716675051334,-151.0,0.00027494,7]
[327936016,1716675051343,-151.0,0.00027494,7]
[327936017,1716675051352,-151.0,0.00027494,7]
[327936018,1716675051362,-202.312435,0.00027494,7]
[327936019,1716675051372,-202.312435,0.00027494,7]
[327936020,1716675051381,-151.0,0.00027494,7]
[327936021,1716675051390,-151.0,0.00027494,7]
[327936022,1716675051399,-151.0,0.00027494,7]
[327936023,1716675051408,-151.0,0.00027494,7]
[327936024,1716675051420,-151.0,0.00027494,7]
[327936025,1716675051430,-151.0,0.00027494,7]
[327936026,1716675051439,-151.0,0.00027494,7]
[327936027,1716675051448,-151.0,0.00027494,7]
[327936028,1716675051457,-151.0,0.00027494,7]
[327936029,1716675051468,-332.410801,0.00027494,7]
[327936030,1716675051477,-332.410801,0.00027494,7]
[327936031,1716675051487,-368.658978,0.00027494,7]
[327936032,1716675051497,-368.658978,0.00027494,7]
[327936033,1716675051506,-2220.87448892,0.00027495,2]
[327936034,1716675051516,-19619.41922891,0.00027495,2]
[327936035,1716675051525,-151.0,0.00027495,7]
[327936036,1716675051534,-151.0,0.00027495,7]
[327936037,1716675051544,-151.0,0.00027495,7]
[327936038,1716675051553,-151.0,0.00027495,7]
[327936039,1716675051563,-151.0,0.00027495,7]
[327936040,1716675051572,-191.822317,0.00027495,7]
[327936041,1716675051581,-191.822317,0.00027495,7]
[327936042,1716675051591,-151.0,0.00027495,7]
[327936043,1716675051601,-151.0,0.00027495,7]
[327936044,1716675051610,-151.0,0.00027495,7]
[327936045,1716675051620,-467.847101,0.00027495,7]
[327936046,1716675051629,-467.847101,0.00027495,7]
[327936047,1716675051638,-151.0,0.00027495,7]
[327936048,1716675051648,-186.866695,0.00027495,7]
[327936049,1716675051657,-151.0,0.00027495,7]
[327936050,1716675051667,-153.073027,0.00027495,7]
[327936051,1716675051676,-164.466534,0.00027495,7]
[327936052,1716675051686,-164.466534,0.00027495,7]
[327936053,1716675051695,-151.0,0.00027495,7]
[327936054,1716675051703,-151.0,0.00027495,7]
[327936055,1716675051712,-194.149248,0.00027495,7]
[327936056,1716675051721,-194.149248,0.00027495,7]
[327936057,1716675051731,-151.0,0.00027495,7]
[327936058,1716675051740,-151.0,0.00027495,7]
[327936059,1716675051749,-226.056258,0.00027495,7]
[327936060,1716675051759,-151.0,0.00027495,7]
[327936061,1716675051768,-226.056258,0.00027495,7]
[327936062,1716675051777,-151.0,0.00027495,7]
[327936063,1716675051787,-151.0,0.00027495,7]
[327936064,1716675051797,-450.070366,0.00027495,7]
[327936065,1716675051807,-450.070366,0.00027495,7]
[327936066,1716675051816,-151.0,0.00027495,7]
[327936067,1716675051825,-221.896683,0.00027495,7]
[327936068,1716675051834,-162.146351,0.00027495,7]
[327936069,1716675051844,-151.0,0.00027495,7]
[327936070,1716675051853,-151.0,0.00027495,7]
[327936071,1716675051862,-162.146345,0.00027495,7]
[327936072,1716675051872,-151.0,0.00027495,7]
[327936073,1716675051881,-151.0,0.00027495,7]
[327936074,1716675051890,-151.0,0.00027495,7]
[327936075,1716675051899,-266.724653,0.00027495,7]
[327936076,1716675051909,-151.0,0.00027496,7]
[327936077,1716675051919,-151.0,0.00027496,7]
[327936078,1716675051928,-151.0,0.00027496,7]
[327936079,1716675051937,-688511.69435047,0.00027497,2]
[327936080,1716675052630,-15280.65467486,0.00027497,2]
[327936081,1716675052671,-5984.3570173,0.00027497,2]
[327936082,1716675052683,-2870.36899834,0.00027497,2]
[327936083,1716675052695,-5116.01626297,0.00027497,2]
[327936084,1716675052707,-1418289.44073192,0.00027497,2]
[327936085,1716675053329,-150.0,0.00025205,2]
[327936086,1716675053338,-151.0,0.0002633,7]
[327936087,1716675053347,-266.724653,0.00026698,7]
[327936088,1716675053356,-151.0,0.00026698,7]
[327936089,1716675053365,-266.724653,0.000269,7]
[327936090,1716675053374,-151.0,0.000269,7]
[327936091,1716675053383,-266.724653,0.00027173,7]
[327936092,1716675053393,-266.724653,0.0002739,7]
[327936093,1716675053402,-151.0,0.00027397,7]
[327936094,1716675053411,-151.0,0.00027397,7]
[327936095,1716675053425,-10.2008407,0.00027397,7]
[327936096,1716675053566,-282.7210353,0.00027397,7]
[327936097,1716675053580,-266.724653,0.000274,7]
[327936098,1716675053596,-66360.06957418,0.00027497,2]
[327936099,1716675053795,-176253.51548809,0.00027497,2]
[327936100,1716675054098,-975.00451163,0.00027497,2]
[327936102,1716675399132,180.04,0.00028048,120]
[327936103,1716675839412,200.0,0.00031,120]
[327936104,1716676009137,-212.27842,0.00013872,2]
[327936121,1716676232060,-1181.42468244,0.00013871,2]
[327936122,1716676232072,-2236.40774336,0.00013871,2]
[327936123,1716676232086,-275.13254599,0.00013871,2]
[327936124,1716676232096,-71.40361495,0.00013872,2]
[327936125,1716676232107,-221.74283253,0.00013872,2]
[327936126,1716676232116,-163.61730037,0.00013873,2]
[327936127,1716676232125,-170.28,0.00013973,2]
[327936128,1716676232135,-152.82,0.00013973,2]
[327936129,1716676232145,-155.0,0.00015357,2]
[327936130,1716676232157,-60.10172519,0.00015358,2]
[327936131,1716676232205,-559.21403336,0.00015358,2]
[327936132,1716676232217,-452.09796917,0.00015359,2]
[327936133,1716676232228,-300.0,0.00017256,2]
[327936134,1716676232239,-150.0,0.00017256,2]
[327936135,1716676232248,-155.0,0.00017257,2]
[327936136,1716676232259,-354.22479058,0.00017257,2]
[327936137,1716676232269,-364.27737293,0.00017257,2]
[327936138,1716676232279,-208.57383812,0.00017257,2]
[327936139,1716676232289,-155.17442459,0.00017257,2]
[327936140,1716676232298,-155.0,0.00017257,2]
[327936141,1716676232307,-155.16476731,0.00017257,2]
[327936142,1716676232316,-312.43037364,0.00017257,2]
[327936143,1716676232326,-186.83867916,0.00017257,2]
[327936144,1716676232335,-155.0,0.00017257,2]
[327936145,1716676232344,-155.1859002,0.00017257,2]
[327936146,1716676232354,-183.80273239,0.00017257,2]
[327936147,1716676232363,-119.08665428,0.00017257,2]
[327936148,1716676232375,-234.25285619,0.00017257,2]
[327936149,1716676232384,-378.83157048,0.00017257,2]
[327936150,1716676232393,-156.74601714,0.00017258,2]
[327936151,1716676232402,-10012.06410748,0.00017259,2]
[327936152,1716676232413,-1033.7,0.00017259,2]
[327936153,1716676232496,-618.41041053,0.00017259,2]
[327936154,1716676232508,-25811.51181344,0.00017259,2]
[327936155,1716676232518,-657.11110724,0.000189,2]
[327936156,1716676232529,-170.88889276,0.000189,2]
[327936157,1716676232538,-210.0,0.00018982,2]
[327936158,1716676232547,-613.64613146,0.00019262,2]
[327936159,1716676232559,-488.00386854,0.00019262,2]
[327936160,1716676232569,-226.14002275,0.000201,2]
[327936161,1716676232578,-170.28,0.00020447,2]
[327936162,1716676232587,-293.0,0.0002088,2]
[327936163,1716676232596,-1050.0,0.00021,2]
[327936164,1716676232605,-500.0,0.00021068,2]
[327936165,1716676232614,-2184.71,0.00021068,2]
[327936166,1716676232623,-176.65,0.00021098,2]
[327936167,1716676232633,-200.0,0.00021121,2]
[327936168,1716676232642,-250.0,0.00021126,2]
[327936169,1716676232651,-246.28,0.00021127,2]
[327936170,1716676232662,-666.83,0.00021133,2]
[327936171,1716676232671,-286.75,0.00021143,2]
[327936172,1716676232680,-23900.0,0.00021207,2]
[327936173,1716676232690,-1101.65,0.00021525,2]
[327936174,1716676232699,-151.92,0.00021632,2]
[327936175,1716676232708,-151.92,0.0002164,2]
[327936176,1716676232717,-151.92,0.00021648,2]
[327936177,1716676232726,-151.92,0.00021657,2]
[327936178,1716676232736,-250.0,0.00021664,2]
[327936179,1716676232745,-151.92,0.00021665,2]
[327936180,1716676232754,-151.92,0.00021673,2]
[327936181,1716676232764,-151.92,0.00021682,2]
[327936182,1716676232773,-151.92,0.0002169,2]
[327936183,1716676232782,-151.92,0.00021698,2]
[327936184,1716676232791,-151.92,0.00021707,2]
[327936185,1716676232800,-151.92,0.00021715,2]
[327936186,1716676232809,-151.92,0.00021723,2]
[327936187,1716676232818,-151.92,0.00021732,2]
[327936188,1716676232826,-151.92,0.0002174,2]
[327936189,1716676232835,-157.23,0.00021814,2]
[327936190,1716676232846,-257.6,0.00021918,2]
[327936191,1716676232855,-166.23,0.00021918,2]
[327936192,1716676232864,-250.0,0.00021918,2]
[327936193,1716676232873,-2000.0,0.00021918,2]
[327936194,1716676232882,-316.44,0.00021918,2]
[327936195,1716676232890,-547.45858614,0.00021998,2]
[327936196,1716676232899,-152.41767348,0.00022035,2]
[327936197,1716676232908,-295.10979606,0.00022044,2]
[327936198,1716676232918,-401.3469825,0.00022101,2]
[327936199,1716676232926,-152.41767348,0.00022109,2]
[327936200,1716676232935,-753.72,0.00022231,2]
[327936201,1716676232944,-156.061984,0.00022233,2]
[327936202,1716676232953,-155.7844244,0.00022234,2]
[327936203,1716676232963,-401.3469825,0.00022242,2]
[327936204,1716676232973,-167.0,0.0002229,2]
[327936205,1716676232982,-201.97583306,0.00022343,2]
[327936206,1716676232991,-180.04,0.00022438,2]
[327936207,1716676233000,-800.0,0.00022438,2]
[327936208,1716676233009,-800.0,0.00022466,2]
[327936209,1716676233019,-171.71607996,0.00022492,2]
[327936210,1716676233028,-201.97583306,0.00022492,2]
[327936211,1716676233037,-153.46461402,0.00022502,2]
[327936212,1716676233046,-150.45,0.00022505,2]
[327936213,1716676233056,-152.41767348,0.00022569,2]
[327936214,1716676233065,-154.03,0.00022701,2]
[327936215,1716676233074,-171.5134944,0.00022712,2]
[327936216,1716676233083,-800.0,0.00022712,2]
[327936217,1716676233092,-154.03,0.00022715,2]
[327936218,1716676233101,-295.10979606,0.00022725,2]
[327936219,1716676233110,-154.03,0.00022729,2]
[327936220,1716676233120,-154.03,0.00022743,2]
[327936221,1716676233129,-154.03,0.00022757,2]
[327936222,1716676233138,-154.03,0.00022772,2]
[327936223,1716676233147,-154.03,0.00022786,2]
[327936224,1716676233158,-154.03,0.000228,2]
[327936225,1716676233167,-154.03,0.00022814,2]
[327936226,1716676233176,-295.10979606,0.00022843,2]
[327936227,1716676233187,-152.41767348,0.00022861,2]
[327936228,1716676233196,-800.0,0.00022904,2]
[327936229,1716676233205,-171.71607996,0.00022953,2]
[327936230,1716676233214,-1100.0,0.00023,2]
[327936231,1716676233223,-171.71607996,0.00023021,2]
[327936232,1716676233234,-167.0,0.00023026,2]
[327936233,1716676233243,-155.28527463,0.00023177,2]
[327936234,1716676233253,-171.71607996,0.00023269,2]
[327936235,1716676233264,-401.3469825,0.00023346,2]
[327936236,1716676233273,-153.02525692,0.0002338,2]
[327936237,1716676233283,-2005.79258683,0.000234,2]
[327936238,1716676233292,-153.29171783,0.00023401,2]
[327936239,1716676233301,-153.02525692,0.00023422,2]
[327936240,1716676233310,-295.10979606,0.00023511,2]
[327936241,1716676233319,-500.0,0.00023683,2]
[327936242,1716676233328,-1000.0,0.00023683,2]
[327936243,1716676233338,-155.28527463,0.00023701,2]
[327936244,1716676233347,-201.97583306,0.00023732,2]
[327936245,1716676233357,-167.0,0.00023762,2]
[327936246,1716676233367,-246.28,0.00023768,2]
[327936247,1716676233376,-1101.65,0.00023789,2]
[327936248,1716676233385,-2184.71,0.00023808,2]
[327936249,1716676233394,-295.10979606,0.00023826,2]
[327936250,1716676233403,-150.45,0.00023875,2]
[327936251,1716676233412,-153.29171783,0.00023949,2]
[327936252,1716676233421,-159.16330459,0.00023958,2]
[327936253,1716676233431,-433.26102806,0.00024,2]
[327936254,1716676233440,-166.66666668,0.00024169,2]
[327936255,1716676233449,-180.0,0.0002423,2]
[327936256,1716676233458,-1000.0,0.00024231,2]
[327936257,1716676233467,-295.10979606,0.0002437,2]
[327936258,1716676233476,-154.06640757,0.00024435,2]
[327936259,1716676233485,-171.71607996,0.00024437,2]
[327936260,1716676233494,-156.061984,0.00024464,2]
[327936261,1716676233504,-167.0,0.00024497,2]
[327936262,1716676233514,-154.36370949,0.000245,2]
[327936263,1716676233523,-171.71607996,0.00024524,2]
[327936264,1716676233532,-201.97583306,0.00024536,2]
[327936265,1716676233542,-171.71607996,0.00024604,2]
[327936266,1716676233551,-153.46461402,0.00024627,2]
[327936267,1716676233560,-303.26,0.00024658,2]
[327936268,1716676233570,-266.06398485,0.00024745,2]
[327936269,1716676233579,-152.41767348,0.00024752,2]
[327936270,1716676233588,-500.0,0.00024779,2]
[327936271,1716676233598,-1000.0,0.00024779,2]
[327936272,1716676233607,-152.41767348,0.00024789,2]
[327936273,1716676233616,-171.71607996,0.00024802,2]
[327936274,1716676233626,-401.3469825,0.00024826,2]
[327936275,1716676233635,-295.10979606,0.00024841,2]
[327936276,1716676233644,-235.31106932,0.000249,2]
[327936277,1716676233653,-527.22313131,0.000249,2]